bitfinex-derivatives/quotes_SOLF0:USTF0_20241212
["timestamp","ask_amount","ask_price","bid_price","bid_amount"]
[1734012144053,16.04466655,229.79,229.66,2.9187]
[1734012144653,2.1762,229.7,229.66,2.9187]
[1734012145953,2.1756,229.77,229.66,18.96336655]
[1734012146153,16.04466655,229.87,229.7,16.04466655]
[1734012146348,3.1,229.86,229.71,2.8686]
[1734012146555,2.1751,229.82,229.71,2.8686]
[1734012146755,3.1,229.86,229.71,2.8686]
[1734012146950,2.1754,229.79,229.71,2.8686]
[1734012147157,3.1,229.85,229.71,2.8686]
[1734012147563,2.175,229.82,229.71,2.8686]
[1734012148158,3.1,229.85,229.71,2.8686]
[1734012148356,2.1752,229.8,229.71,2.8686]
[1734012148557,2.1752,229.8,229.75,2.1756]
[1734012148963,2.1752,229.8,229.71,2.8686]
[1734012149356,2.1752,229.8,229.73,2.1758]
[1734012149556,2.1752,229.8,229.71,2.8686]
[1734012149758,2.9085,229.9,229.71,2.8686]
[1734012149958,3.1,229.89,229.74,16.04466655]
[1734012150161,16.04466655,229.91,229.75,3.1]
[1734012150458,2.1746,229.87,229.82,2.175]
[1734012150664,16.04466655,229.95,229.78,16.04466655]
[1734012150963,2.1743,229.91,229.83,2.1749]
[1734012151260,2.1743,229.91,229.81,3.1]
[1734012152058,2.1739,229.94,229.82,18.78336655]
[1734012152263,2.7446,230.02,229.82,18.78336655]
[1734012152462,3.1,230.01,229.86,16.04466655]
[1734012152659,2.1738,229.95,229.9,2.1742]
[1734012153257,3.1,230.01,229.88,2.7615]
[1734012153960,2.1734,230.0,229.95,2.1738]
[1734012154165,2.1734,230.0,229.88,2.7615]
[1734012154365,330.18908041,230.03,229.88,2.7615]
[1734012154866,330.18908041,230.03,229.9,16.04466655]
[1734012155065,332.36218041,230.03,229.93,2.1739]
[1734012155260,332.36218041,230.03,229.94,5.9811]
[1734012155460,182.27623477,230.03,229.94,5.9811]
[1734012155658,2.1731,230.02,229.94,8.1549]
[1734012155860,180.10313477,230.03,229.94,2.8811]
[1734012156059,8.19159545,230.07,229.94,2.8811]
[1734012156358,16.04466655,230.04,229.9,8.35474261]
[1734012156760,2.1739,229.95,229.9,8.35474261]
[1734012156959,16.04466655,230.04,229.9,8.35474261]
[1734012157359,2.1736,229.97,229.92,2.1741]
[1734012157565,3.08,230.01,229.88,2.7615]
[1734012158671,3.08,230.01,229.89,2.1743]
[1734012160361,3.08,230.01,229.88,8.1088466]
[1734012160561,3.08,230.06,229.9,15.98025252]
[1734012160774,3.08,230.06,229.91,2.8321]
[1734012161067,5.09159545,230.07,229.92,3.08]
[1734012161674,2.1733,230.01,229.94,2.1738]
[1734012161871,2.1733,230.01,229.92,3.08]
[1734012162369,2.1731,230.03,229.93,3.08]
[1734012162577,15.98025252,230.12,229.94,15.98025252]
[1734012162764,2.1728,230.06,229.99,2.1734]
[1734012163074,15.98025252,230.12,229.93,3.08]
[1734012163769,2.1731,230.03,229.97,2.1736]
[1734012163970,15.98025252,230.12,229.97,2.1736]
[1734012164874,15.98025252,230.12,229.93,3.08]
[1734012165076,15.98025252,230.08,229.93,3.08]
[1734012165287,15.98025252,230.12,229.94,15.98025252]
[1734012165578,3.08,230.13,229.98,15.98025252]
[1734012165780,3.08,230.13,229.99,8.5566]
[1734012166679,2.1726,230.08,230.02,2.1731]
[1734012167277,2.1727,230.07,229.99,8.5566]
[1734012167578,3.08,230.13,230.0,2.1732]
[1734012167976,2.1727,230.08,230.02,2.173]
[1734012168177,3.08,230.13,229.99,8.5566]
[1734012168573,2.1727,230.07,230.01,2.1732]
[1734012169176,2.1727,230.07,230.02,2.1731]
[1734012169375,2.1726,230.08,230.02,2.1731]
[1734012169574,2.1726,230.08,229.99,8.5566]
[1734012169775,3.08,230.17,230.02,15.98025252]
[1734012169976,15.98025252,230.2,230.03,2.7926]
[1734012170174,49.5608,230.32,230.06,15.98025252]
[1734012170175,15.98025252,230.24,230.06,15.98025252]
[1734012170373,2.1716,230.19,230.07,3.08]
[1734012170582,2.1716,230.19,230.09,17.39792933]
[1734012170880,3.08,230.23,230.14,2.172]
[1734012171080,3.08,230.23,230.1,2.9137]
[1734012171883,2.1714,230.21,230.15,2.1719]
[1734012172082,8.3421,230.3,230.13,20.47792933]
[1734012172083,2.6905,230.3,230.13,20.47792933]
[1734012172379,5.7705,230.3,230.14,2.8365]
[1734012173283,2.6905,230.3,230.14,2.8365]
[1734012173680,2.1709,230.26,230.18,2.1715]
[1734012173981,2.6905,230.3,230.14,2.8365]
[1734012174174,2.1709,230.26,230.19,2.1715]
[1734012174374,2.6905,230.3,230.19,2.1715]
[1734012175384,2.1708,230.27,230.19,2.1715]
[1734012175685,2.6905,230.3,230.19,2.1715]
[1734012176183,2.1711,230.24,230.19,2.1715]
[1734012177180,2.6905,230.3,230.18,5.23327637]
[1734012177882,2.1713,230.22,230.18,5.23327637]
[1734012178583,2.1711,230.24,230.18,7.40487637]
[1734012178777,2.6905,230.3,230.18,7.40487637]
[1734012179085,2.1711,230.24,230.19,2.1715]
[1734012179280,2.6905,230.3,230.18,5.23327637]
[1734012180187,2.1712,230.23,230.18,7.40487637]
[1734012180387,2.6905,230.3,230.18,5.23327637]
[1734012181088,2.1711,230.24,230.19,2.1715]
[1734012181287,2.6905,230.3,230.19,2.1715]
[1734012181482,2.6905,230.3,230.18,5.23327637]
[1734012181690,2.1706,230.3,230.24,2.171]
[1734012181992,3.08,230.37,230.21,17.39792933]
[1734012182385,3.08,230.37,230.19,3.08]
[1734012183287,17.39792933,230.35,230.19,3.08]
[1734012183589,17.39792933,230.35,230.18,7.97927637]
[1734012184186,17.39792933,230.35,230.2,2.1714]
[1734012184388,17.39792933,230.35,230.18,7.97927637]
[1734012184781,3.08,230.37,230.21,17.39792933]
[1734012185287,2.1709,230.26,230.21,19.56912933]
[1734012185487,2.1709,230.26,230.21,17.39792933]
[1734012185886,3.08,230.37,230.18,7.97927637]
[1734012186889,2.1711,230.23,230.18,7.97927637]
[1734012187489,2.1711,230.24,230.18,7.97927637]
[1734012187888,3.08,230.37,230.18,7.97927637]
[1734012188485,2.171,230.25,230.21,2.1713]
[1734012188684,3.08,230.37,230.18,7.97927637]
[1734012189192,3.08,230.37,230.21,10.86569462]
[1734012189193,10.86569462,230.35,230.21,10.86569462]
[1734012189692,10.86569462,230.32,230.14,2.8365]
[1734012189992,3.08,230.37,230.14,2.8365]
[1734012189993,10.86569462,230.29,230.14,2.8365]
[1734012190189,2.1716,230.18,230.14,7.97334648]
[1734012190883,2.1716,230.18,230.14,10.14534648]
[1734012191189,2.1718,230.17,230.14,5.13684648]
[1734012191490,3.08,230.25,230.16,10.86569462]
[1734012191685,10.86569462,230.32,230.14,5.13684648]
[1734012191686,10.86569462,230.35,230.17,3.08]
[1734012191992,2.6792,230.31,230.22,10.86569462]
[1734012192387,2.171,230.25,230.22,10.86569462]
[1734012193086,2.6792,230.31,230.19,10.86569462]
[1734012193489,2.1714,230.21,230.19,10.86569462]
[1734012193689,2.6792,230.31,230.19,10.86569462]
[1734012194390,2.6792,230.31,230.2,2.1714]
[1734012194889,2.1711,230.24,230.2,2.1714]
[1734012195087,10.86569462,230.29,230.16,10.86569462]
[1734012195785,10.86569462,230.29,230.17,2.1717]
[1734012195991,10.86569462,230.29,230.16,10.86569462]
[1734012196196,2.1715,230.19,230.16,10.86569462]
[1734012196496,10.86569462,230.29,230.16,13.03739462]
[1734012197494,10.86569462,230.29,230.16,10.86569462]
[1734012197799,2.1713,230.21,230.16,10.86569462]
[1734012197998,3.06,230.3,230.16,10.86569462]
[1734012198199,2.6792,230.31,230.17,2.1716]
[1734012198393,2.1713,230.22,230.16,10.86569462]
[1734012198705,3.06,230.3,230.16,10.86569462]
[1734012198897,10.86569462,230.29,230.16,10.86569462]
[1734012199391,2.1713,230.22,230.16,10.86569462]
[1734012199792,3.06,230.3,230.16,10.86569462]
[1734012199993,2.1711,230.24,230.2,2.1713]
[1734012200199,5.7392,230.31,230.19,10.86569462]
[1734012200598,5.7392,230.31,230.22,2.1712]
[1734012200900,2.6792,230.31,230.22,2.1712]
[1734012201699,2.171,230.25,230.22,2.1712]
[1734012201898,5.4726,230.37,230.22,10.86569462]
[1734012202093,2.1706,230.3,230.25,10.86569462]
[1734012202294,3.06,230.36,230.25,10.86569462]
[1734012202497,10.86569462,230.35,230.22,10.86569462]
[1734012203501,10.86569462,230.35,230.2,8.275]
[1734012203502,10.86569462,230.32,230.2,8.275]
[1734012204206,10.86569462,230.35,230.22,2.1712]
[1734012204504,10.86569462,230.35,230.2,8.275]
[1734012204699,10.86569462,230.35,230.2,5.4616]
[1734012204904,10.86569462,230.35,230.2,7.633]
[1734012205105,2.1711,230.24,230.2,7.633]
[1734012205809,2.1711,230.24,230.21,2.1713]
[1734012206408,10.86569462,230.35,230.22,2.1712]
[1734012206605,10.86569462,230.35,230.2,5.4616]
[1734012206804,10.86569462,230.32,230.2,5.4616]
[1734012207208,2.1711,230.24,230.2,7.633]
[1734012207711,2.1711,230.24,230.21,2.1713]
[1734012207902,10.86569462,230.32,230.19,13.92569462]
[1734012208711,2.171,230.25,230.21,2.1713]
[1734012209008,10.86569462,230.32,230.19,13.92569462]
[1734012209507,10.86569462,230.32,230.19,10.86569462]
[1734012209714,2.1707,230.29,230.19,10.86569462]
[1734012209913,3.06,230.29,230.19,10.86569462]
[1734012210415,2.1711,230.24,230.19,10.86569462]
[1734012210811,3.06,230.35,230.23,10.86569462]
[1734012211006,3.06,230.35,230.2,3.06]
[1734012211007,148.64632322,230.38,230.26,10.86569462]
[1734012211212,174.28769443,230.4,230.29,10.86569462]
[1734012211507,90.07512029,230.41,230.29,10.86569462]
[1734012211508,19.91518648,230.39,230.29,10.86569462]
[1734012211713,3.06,230.41,230.29,10.86569462]
[1734012212010,3.06,230.41,230.32,10.86569462]
[1734012212208,2.7871,230.43,230.32,10.86569462]
[1734012212616,2.1697,230.39,230.32,10.86569462]
[1734012213313,2.7871,230.43,230.32,10.86569462]
[1734012214615,2.1698,230.38,230.33,2.1702]
[1734012215707,2.1697,230.39,230.35,13.03569462]
[1734012216113,3.06,230.45,230.35,13.03569462]
[1734012216513,2.1695,230.4,230.35,13.03569462]
[1734012217517,2.1695,230.4,230.36,2.1699]
[1734012218115,3.06,230.46,230.35,10.86569462]
[1734012218310,3.06,230.49,230.35,10.86569462]
[1734012218516,3.06,230.5,230.38,10.86569462]
[1734012218716,2.169,230.46,230.41,2.1694]
[1734012218920,3.06,230.52,230.41,10.86569462]
[1734012219214,10.86569462,230.54,230.41,10.86569462]
[1734012219421,2.1686,230.51,230.44,10.86569462]
[1734012219715,10.86569462,230.57,230.44,10.86569462]
[1734012219716,13.92569462,230.57,230.44,10.86569462]
[1734012220024,0.71942847,230.56,230.44,10.86569462]
[1734012220215,10.86569462,230.54,230.41,10.86569462]
[1734012221220,19.03992193,230.57,230.41,10.86569462]
[1734012221421,19.03992193,230.57,230.44,10.86569462]
[1734012221422,0.71939164,230.56,230.44,10.86569462]
[1734012221919,10.86569462,230.54,230.41,10.86569462]
[1734012222221,0.71939164,230.53,230.41,10.86569462]
[1734012222519,0.71936431,230.52,230.41,10.86569462]
[1734012222719,10.86569462,230.54,230.41,10.86569462]
[1734012223113,0.71933062,230.53,230.41,10.86569462]
[1734012223711,2.1687,230.5,230.41,10.86569462]
[1734012223917,2.1687,230.5,230.44,10.86569462]
[1734012224117,13.92569462,230.57,230.44,10.86569462]
[1734012224322,0.71946908,230.56,230.44,10.86569462]
[1734012224521,3.75946908,230.56,230.41,10.86569462]
[1734012224713,2.169,230.46,230.41,13.03509462]
[1734012224916,10.86569462,230.54,230.41,10.86569462]
[1734012225117,0.71946212,230.53,230.41,10.86569462]
[1734012225516,10.86569462,230.54,230.41,10.86569462]
[1734012225716,0.71935624,230.53,230.41,10.86569462]
[1734012225915,0.71935624,230.53,230.44,10.86569462]
[1734012226120,3.04,230.56,230.44,10.86569462]
[1734012226319,0.71942501,230.55,230.44,10.86569462]
[1734012226513,2.1685,230.52,230.47,2.1688]
[1734012226817,3.04,230.56,230.47,2.1688]
[1734012227016,0.71941912,230.55,230.47,2.1688]
[1734012227216,0.71941912,230.55,230.47,10.86569462]
[1734012227411,0.71941912,230.55,230.48,2.1688]
[1734012227620,0.71941912,230.55,230.47,10.86569462]
[1734012228520,2.1684,230.52,230.47,13.03449462]
[1734012228721,2.1684,230.52,230.47,10.86569462]
[1734012229018,3.04,230.56,230.47,10.86569462]
[1734012229223,2.1686,230.51,230.47,13.03449462]
[1734012230424,3.04,230.58,230.47,10.86569462]
[1734012230623,3.04,230.58,230.46,2.7348]
[1734012231021,2.1688,230.49,230.46,2.7348]
[1734012231320,3.04,230.58,230.46,2.7348]
[1734012231717,0.71947702,230.57,230.46,2.7348]
[1734012232133,3.04,230.58,230.46,2.7348]
[1734012232329,0.71947946,230.57,230.46,2.7348]
[1734012232727,2.1688,230.48,230.46,2.7348]
[1734012233623,10.86569462,230.56,230.44,10.86569462]
[1734012234024,10.86569462,230.56,230.41,10.86569462]
[1734012234025,0.71941544,230.55,230.41,10.86569462]
[1734012234627,10.86569462,230.53,230.41,10.86569462]
[1734012234927,10.86569462,230.5,230.38,16.41689462]
[1734012235126,2.1689,230.47,230.38,16.41689462]
[1734012235320,10.86569462,230.5,230.38,16.41689462]
[1734012235828,10.86569462,230.5,230.38,5.5512]
[1734012236023,10.86569462,230.5,230.38,16.41689462]
[1734012236229,2.1689,230.47,230.38,16.41689462]
[1734012236530,3.04,230.52,230.39,2.1696]
[1734012236734,3.04,230.52,230.41,10.86569462]
[1734012237433,2.1691,230.45,230.41,10.86569462]
[1734012237931,3.04,230.52,230.41,10.86569462]
[1734012238237,2.1692,230.44,230.41,10.86569462]
[1734012238631,3.04,230.52,230.41,10.86569462]
[1734012238834,2.1693,230.43,230.41,10.86569462]
[1734012239035,10.86569462,230.5,230.38,16.41689462]
[1734012239334,2.1696,230.4,230.38,5.5512]
[1734012239845,3.04,230.45,230.37,2.7305]
[1734012240039,2.1699,230.37,230.35,10.86569462]
[1734012240337,10.86569462,230.44,230.32,13.03599462]
[1734012240539,10.86569462,230.44,230.29,16.41539462]
[1734012240745,3.04,230.45,230.29,16.41539462]
[1734012240746,10.86569462,230.41,230.29,16.41539462]
[1734012242136,10.86569462,230.41,230.29,2.6596]
[1734012242445,2.1705,230.3,230.29,2.6596]
[1734012242741,2.1708,230.27,230.25,2.8638]
[1734012242939,3.04,230.32,230.28,0.84584]
[1734012243138,3.04,230.31,230.28,0.84584]
[1734012243344,2.1706,230.29,230.28,0.84584]
[1734012243940,13.03629462,230.29,230.28,0.84584]
[1734012244337,2.1713,230.21,230.19,2.7395]
[1734012244542,3.04,230.25,230.19,2.7395]
[1734012244845,3.04,230.25,230.14,10.86569462]
[1734012245349,3.04,230.25,230.17,10.86569462]
[1734012245547,2.1712,230.23,230.17,10.86569462]
[1734012245742,10.86569462,230.29,230.17,10.86569462]
[1734012245951,3.04,230.25,230.17,10.86569462]
[1734012246451,3.04,230.25,230.14,10.86569462]
[1734012247444,3.04,230.25,230.17,10.86569462]
[1734012247750,3.04,230.25,230.16,2.1717]
[1734012247944,3.04,230.25,230.14,10.86569462]
[1734012248143,2.1711,230.24,230.18,2.1716]
[1734012248347,3.04,230.28,230.17,10.86569462]
[1734012248649,3.04,230.28,230.18,2.8572]
[1734012249049,3.04,230.28,230.14,10.86569462]
[1734012250040,2.1713,230.22,230.15,2.1718]
[1734012250249,10.86569462,230.26,230.14,10.86569462]
[1734012250447,10.86569462,230.23,230.11,2.8112]
[1734012250646,5.9302,230.28,230.1,5.7045]
[1734012250647,2.1722,230.12,230.1,5.7045]
[1734012250844,3.04,230.18,230.1,5.7045]
[1734012251450,10.86569462,230.22,230.1,16.57019462]
[1734012251678,2.1716,230.19,230.1,16.57019462]
[1734012251981,3.04,230.22,230.13,10.86569462]
[1734012252559,3.04,230.22,230.14,2.8715]
[1734012253444,2.1718,230.16,230.14,2.8715]
[1734012253644,3.04,230.22,230.14,2.8715]
[1734012254046,2.1716,230.18,230.14,2.8715]
[1734012255650,13.90569462,230.22,230.14,2.8715]
[1734012255949,13.90569462,230.22,230.1,5.7045]
[1734012256250,10.86569462,230.19,230.1,5.7045]
[1734012256455,10.86569462,230.19,230.05,13.57289462]
[1734012256650,10.86569462,230.16,230.05,2.7072]
[1734012256848,3.04,230.15,230.05,2.7072]
[1734012257243,3.04,230.15,230.05,10.05743948]
[1734012257451,3.04,230.15,230.05,2.7072]
[1734012257650,10.86569462,230.13,230.05,2.7072]
[1734012257944,2.1728,230.06,229.99,10.86569462]
[1734012258149,10.86569462,230.13,229.99,10.86569462]
[1734012258348,10.86569462,230.1,229.96,13.57289462]
[1734012258552,3.04,230.09,229.99,2.1733]
[1734012259045,2.1729,230.05,229.99,2.1733]
[1734012259264,2.1729,230.05,230.0,2.1733]
[1734012260054,2.173,230.04,230.0,7.44399489]
[1734012260949,3.04,230.09,229.96,13.57289462]
[1734012261749,3.04,230.09,229.99,2.1734]
[1734012262051,3.04,230.09,229.99,10.86569462]
[1734012262444,2.1728,230.06,230.0,2.1732]
[1734012262649,2.1728,230.06,229.99,10.86569462]
[1734012263045,10.86569462,230.13,229.99,10.86569462]
[1734012263046,3.04,230.09,229.99,10.86569462]
[1734012263546,3.04,230.09,229.96,18.76481341]
[1734012264156,10.86569462,230.07,229.96,2.7072]
[1734012264547,2.1732,230.02,229.98,2.1735]
[1734012265349,10.86569462,230.07,229.96,4.8808]
[1734012265551,10.86569462,230.07,229.96,2.7072]
[1734012265857,2.1732,230.02,229.97,2.1736]
[1734012266047,10.86569462,230.07,229.97,2.1736]
[1734012266253,3.04,230.09,229.96,13.57289462]
[1734012266452,10.86569462,230.1,229.96,13.57289462]
[1734012266658,3.04,230.12,230.0,10.86569462]
[1734012266856,3.04,230.12,230.03,10.86569462]
[1734012267152,3.04,230.12,230.07,2.1726]
[1734012267551,2.1722,230.12,230.03,10.86569462]
[1734012267744,3.04,230.14,230.03,10.86569462]
[1734012268149,3.04,230.14,230.06,10.86569462]
[1734012268347,3.04,230.14,230.07,8.3352]
[1734012268548,97.96208697,230.2,230.11,2.1723]
[1734012268748,3.04,230.19,230.11,2.1723]
[1734012268951,0.35407,230.21,230.11,2.1723]
[1734012269152,0.35407,230.21,230.09,13.03809462]
[1734012269153,3.04,230.2,230.09,13.03809462]
[1734012269358,13.90569462,230.2,230.07,8.3352]
[1734012269755,2.1721,230.14,230.09,2.1725]
[1734012269953,3.04,230.18,230.07,8.3352]
[1734012271051,3.04,230.19,230.09,10.86569462]
[1734012271256,10.86569462,230.17,230.07,8.3352]
[1734012271653,10.86569462,230.14,230.0,10.86569462]
[1734012271859,2.1725,230.1,230.02,2.1731]
[1734012272060,3.04,230.13,230.0,10.86569462]
[1734012272361,3.04,230.14,230.03,10.86569462]
[1734012272563,2.1721,230.13,230.06,2.1727]
[1734012272756,3.04,230.14,230.03,10.86569462]
[1734012273157,3.04,230.15,230.03,10.86569462]
[1734012273665,2.1722,230.12,230.03,10.86569462]
[1734012273854,3.04,230.15,230.06,10.86569462]
[1734012274255,3.04,230.17,230.07,8.0648]
[1734012274960,2.172,230.14,230.11,2.1723]
[1734012275165,2.172,230.14,230.07,8.0648]
[1734012275359,3.04,230.17,230.07,8.0648]
[1734012275572,13.90569462,230.17,230.07,8.0648]
[1734012276260,2.1725,230.1,230.07,8.0648]
[1734012276566,10.86569462,230.14,230.07,8.0648]
[1734012276960,2.1723,230.11,230.07,8.0648]
[1734012277569,2.1725,230.1,230.07,8.0648]
[1734012277864,13.90569462,230.17,230.08,2.1726]
[1734012278366,13.90569462,230.17,230.09,2.1725]
[1734012278567,13.90569462,230.17,230.07,8.0648]
[1734012279567,10.86569462,230.14,230.01,2.8874]
[1734012279760,10.86569462,230.11,230.01,5.7078]
[1734012279965,13.90569462,230.11,230.01,5.7078]
[1734012280264,13.90569462,230.11,230.02,2.1731]
[1734012280769,13.90569462,230.11,230.04,2.1729]
[1734012280770,2.1726,230.08,230.04,2.1729]
[1734012281164,5.52132454,230.21,230.06,10.86569462]
[1734012281165,0.35407,230.21,230.06,10.86569462]
[1734012281365,0.35407,230.21,230.1,10.86569462]
[1734012281566,0.35407,230.21,230.11,2.8923]
[1734012281761,2.1715,230.19,230.14,2.172]
[1734012282067,2.1715,230.19,230.11,5.6631]
[1734012282268,2.1715,230.19,230.15,2.1718]
[1734012282870,3.04,230.23,230.11,5.6631]
[1734012283364,2.1717,230.17,230.11,5.6631]
[1734012283759,10.86569462,230.21,230.11,5.6631]
[1734012283962,2.1716,230.18,230.14,2.172]
[1734012284766,10.86569462,230.21,230.14,2.172]
[1734012284968,2.1717,230.17,230.14,2.172]
[1734012285362,2.1716,230.19,230.11,5.6631]
[1734012285563,10.86569462,230.24,230.11,5.6631]
[1734012285765,10.86569462,230.27,230.13,10.86569462]
[1734012285965,2.1712,230.23,230.13,10.86569462]
[1734012286175,10.86569462,230.24,230.11,5.6631]
[1734012286771,2.1715,230.2,230.11,5.6631]
[1734012287368,2.1715,230.2,230.15,2.1718]
[1734012287774,2.1715,230.2,230.16,2.1718]
[1734012288369,3.02,230.23,230.19,2.1715]
[1734012288874,3.02,230.23,230.11,5.6631]
[1734012289073,3.02,230.23,230.2,2.1714]
[1734012289271,5.1912,230.23,230.14,10.86569462]
[1734012289674,5.1912,230.23,230.19,2.1715]
[1734012289875,2.1713,230.22,230.14,10.86569462]
[1734012290276,3.02,230.23,230.14,10.86569462]
[1734012290468,3.02,230.23,230.17,2.1716]
[1734012291571,2.1714,230.21,230.17,2.1716]
[1734012291768,2.1714,230.21,230.18,2.1716]
[1734012292674,2.1715,230.2,230.17,2.1717]
[1734012293072,3.02,230.23,230.17,2.1717]
[1734012293571,2.1714,230.21,230.17,2.1717]
[1734012293772,16.0248087,230.27,230.14,10.86569462]
[1734012293974,3.02,230.26,230.18,2.1715]
[1734012294172,3.02,230.26,230.14,10.86569462]
[1734012294577,3.02,230.26,230.19,2.1714]
[1734012294876,3.02,230.26,230.14,10.86569462]
[1734012295372,2.1712,230.23,230.19,2.1714]
[1734012295569,2.1712,230.23,230.14,10.86569462]
[1734012295880,2.1713,230.22,230.14,10.86569462]
[1734012296178,3.02,230.26,230.14,10.86569462]
[1734012296376,3.02,230.26,230.16,2.1717]
[1734012296569,10.86569462,230.24,230.11,16.52879462]
[1734012296767,10.86569462,230.21,230.11,5.6631]
[1734012296975,3.02,230.2,230.11,2.8923]
[1734012297771,10.86569462,230.18,230.08,2.1726]
[1734012298573,2.1722,230.12,230.08,2.1726]
[1734012299777,3.02,230.13,230.04,2.8421]
[1734012299971,10.86569462,230.12,229.99,10.86569462]
[1734012300171,2.1731,230.03,229.98,2.1734]
[1734012300376,10.86569462,230.09,229.96,13.52389462]
[1734012300377,3.02,230.07,229.96,13.52389462]
[1734012300578,10.86569462,230.06,229.96,2.6582]
[1734012300975,10.86569462,230.03,229.85,3.02]
[1734012301280,2.1738,229.95,229.88,5.17081277]
[1734012301484,3.02,229.98,229.86,19.10389462]
[1734012301885,2.1741,229.92,229.86,21.27849462]
[1734012302177,10.86569462,229.97,229.86,5.4668]
[1734012302378,2.1745,229.88,229.82,2.175]
[1734012302877,10.86569462,229.91,229.8,10.86569462]
[1734012303085,13.88569462,229.91,229.8,10.86569462]
[1734012303378,13.88569462,229.91,229.77,10.86569462]
[1734012303775,13.88569462,229.91,229.79,2.1753]
[1734012303981,13.88569462,229.91,229.77,10.86569462]
[1734012303982,13.88569462,229.91,229.78,5.34425893]
[1734012304181,2.1749,229.84,229.78,4.35129442]
[1734012304374,10.86569462,229.88,229.78,2.17599442]
[1734012304779,2.175,229.82,229.78,2.17599442]
[1734012304976,10.86569462,229.88,229.78,2.17599442]
[1734012305177,2.1753,229.8,229.78,2.17599442]
[1734012305580,3.02,229.85,229.78,2.17599442]
[1734012305782,3.02,229.87,229.78,2.17599442]
[1734012306286,3.02,229.87,229.81,2.1751]
[1734012306583,3.02,229.87,229.78,2.17599442]
[1734012306784,2.1751,229.82,229.78,2.17599442]
[1734012306980,3.02,229.87,229.78,2.17599442]
[1734012307481,3.02,229.93,229.78,2.17599442]
[1734012307881,3.02,229.93,229.8,16.00366819]
[1734012308083,3.02,229.93,229.81,5.4378]
[1734012308680,3.02,229.93,229.84,2.1748]
[1734012308681,2.1742,229.91,229.84,2.1748]
[1734012308882,3.02,229.93,229.81,5.4378]
[1734012309384,2.1745,229.88,229.81,7.6128]
[1734012309577,3.02,229.93,229.81,5.4378]
[1734012310179,3.02,229.92,229.81,5.4378]
[1734012310375,3.02,229.92,229.81,2.667]
[1734012310579,16.00366819,229.91,229.78,2.17599442]
[1734012310982,2.1752,229.8,229.78,2.17599442]
[1734012311987,3.02,229.84,229.78,2.17599442]
[1734012312688,2.1752,229.8,229.78,2.17599442]
[1734012312989,3.02,229.84,229.72,5.23964664]
[1734012313186,2.1751,229.81,229.72,7.41554664]
[1734012313384,3.02,229.84,229.72,5.23964664]
[1734012313782,2.1751,229.82,229.74,5.0044]
[1734012313987,3.02,229.84,229.74,2.8287]
[1734012314488,2.9116,229.88,229.74,2.8287]
[1734012314686,3.02,229.87,229.74,2.8287]
[1734012315082,2.9116,229.88,229.74,2.8287]
[1734012315283,2.9116,229.88,229.76,16.00366819]
[1734012315284,3.02,229.88,229.76,16.00366819]
[1734012315887,3.02,229.9,229.76,16.00366819]
[1734012317287,3.02,229.9,229.75,3.02]
[1734012317288,2.17495323,229.89,229.75,3.02]
[1734012317493,18.17862142,229.89,229.74,2.8287]
[1734012317893,16.00366819,229.85,229.72,5.23964664]
[1734012318094,3.02,229.84,229.72,5.23964664]
[1734012318293,3.02,229.84,229.7,2.658]
[1734012318492,3.02,229.84,229.7,7.9273491]
[1734012318693,2.1758,229.75,229.7,7.9273491]
[1734012318991,5.8783,229.84,229.7,2.658]
[1734012319293,8.6657,229.84,229.7,2.658]
[1734012319499,2.1757,229.75,229.7,2.658]
[1734012319688,3.02,229.78,229.7,2.658]
[1734012320086,2.1757,229.75,229.7,2.658]
[1734012320588,2.1757,229.75,229.7,4.8341]
[1734012320890,5.6457,229.84,229.7,2.658]
[1734012321193,2.1752,229.8,229.73,2.1758]
[1734012321395,3.02,229.83,229.7,2.658]